fUSD/lending_fUSD_20250311
["ID","MTS","AMOUNT","RATE_DAILY","PERIOD"]
[355934158,1741719044752,-500.0,8.997e-05,2]
[355934159,1741719044762,-500.0,8.997e-05,2]
[355934160,1741719044772,-500.0,8.997e-05,2]
[355934161,1741719044781,-500.0,8.997e-05,2]
[355934162,1741719044792,-500.0,8.997e-05,2]
[355934163,1741719044802,-500.0,8.997e-05,2]
[355934164,1741719044816,-186.59700025,8.997e-05,2]
[355934165,1741719044825,-329.42836364,8.997e-05,2]
[355934166,1741719044835,-500.0,8.997e-05,2]
[355934167,1741719044845,-500.0,8.997e-05,2]
[355934168,1741719044855,-500.0,8.997e-05,2]
[355934169,1741719044865,-500.0,8.997e-05,2]
[355934170,1741719044874,-500.0,8.997e-05,2]
[355934171,1741719044884,-500.0,8.997e-05,2]
[355934172,1741719044895,-500.0,8.997e-05,2]
[355934173,1741719044904,-500.0,8.997e-05,2]
[355934174,1741719044914,-370.16267135,8.997e-05,2]
[355934175,1741719044923,-500.0,8.997e-05,2]
[355934176,1741719044933,-506.0182003,8.997e-05,2]
[355934177,1741719044942,-507.41780014,8.997e-05,2]
[355934178,1741719044951,-538.56121551,8.997e-05,2]
[355934179,1741719044961,-500.0,8.997e-05,2]
[355934180,1741719044970,-500.0,8.997e-05,2]
[355934181,1741719044980,-322.79069676,8.997e-05,2]
[355934182,1741719044989,-290.53532578,8.997e-05,2]
[355934183,1741719044998,-500.0,8.997e-05,2]
[355934184,1741719045007,-500.0,8.997e-05,2]
[355934185,1741719045016,-500.0,8.997e-05,2]
[355934186,1741719045025,-500.0,8.997e-05,2]
[355934187,1741719045034,-500.0,8.997e-05,2]
[355934188,1741719045046,-391.50942076,8.997e-05,2]
[355934189,1741719045055,-500.0,8.997e-05,2]
[355934190,1741719045065,-500.0,8.997e-05,2]
[355934191,1741719045075,-597.53589276,8.997e-05,2]
[355934192,1741719045084,-500.0,8.997e-05,2]
[355934193,1741719045094,-518.37539696,8.997e-05,2]
[355934194,1741719045103,-588.6287264,8.997e-05,2]
[355934195,1741719045113,-500.0,8.997e-05,2]
[355934196,1741719045122,-500.0,8.997e-05,2]
[355934197,1741719045131,-500.0,8.997e-05,2]
[355934198,1741719045141,-500.0,8.997e-05,2]
[355934199,1741719045151,-1511.47,8.997e-05,2]
[355934200,1741719045161,-500.0,8.997e-05,2]
[355934201,1741719045172,-979.69,8.997e-05,2]
[355934202,1741719045182,-500.0,8.997e-05,2]
[355934203,1741719045191,-500.0,8.997e-05,2]
[355934204,1741719045201,-500.0,8.997e-05,2]
[355934205,1741719045211,-500.0,8.997e-05,2]
[355934206,1741719045221,-500.0,8.997e-05,2]
[355934207,1741719045230,-500.0,8.997e-05,2]
[355934208,1741719045240,-500.0,8.997e-05,2]
[355934209,1741719045249,-515.08,8.997e-05,2]
[355934210,1741719045258,-821.98,8.997e-05,2]
[355934211,1741719045269,-511.25,8.997e-05,2]
[355934212,1741719045278,-500.0,8.997e-05,2]
[355934213,1741719045288,-1439.85,8.997e-05,2]
[355934214,1741719045300,-500.0,8.997e-05,2]
[355934215,1741719045309,-513.85999919,8.997e-05,2]
[355934216,1741719045319,-500.0,8.997e-05,2]
[355934217,1741719045328,-500.0,8.997e-05,2]
[355934218,1741719045338,-500.0,8.997e-05,2]
[355934219,1741719045542,-500.0,8.997e-05,2]
[355934220,1741719045552,-500.0,8.997e-05,2]
[355934221,1741719045562,-624.84,8.997e-05,2]
[355934222,1741719045571,-1880.79,8.997e-05,2]
[355934223,1741719045581,-500.0,8.997e-05,2]
[355934224,1741719045590,-500.0,8.997e-05,2]
[355934225,1741719045599,-512.11,8.997e-05,2]
[355934226,1741719045609,-500.0,8.997e-05,2]
[355934227,1741719045618,-1840.0,8.997e-05,2]
[355934228,1741719045628,-510.44,8.997e-05,2]
[355934229,1741719045637,-2308.59,8.997e-05,2]
[355934230,1741719045646,-500.0,8.997e-05,2]
[355934231,1741719045656,-1586.28,8.997e-05,2]
[355934232,1741719045665,-1234.5,8.997e-05,2]
[355934233,1741719045675,-1840.59,8.997e-05,2]
[355934234,1741719045684,-524.39,8.997e-05,2]
[355934235,1741719045693,-1277.45,8.997e-05,2]
[355934236,1741719045702,-854.87,8.997e-05,2]
[355934237,1741719045712,-500.0,8.997e-05,2]
[355934238,1741719045721,-494.3630575,8.997e-05,2]
[355934239,1741719045737,-5.6369425,8.997e-05,2]
[355934240,1741719045746,-500.0,8.997e-05,2]
[355934241,1741719045756,-1798.96,8.997e-05,2]
[355934242,1741719045765,-517.1030575,8.997e-05,2]
[355934243,1741719045776,-286.5569425,8.997e-05,2]
[355934244,1741719045786,-867.53,8.997e-05,2]
[355934245,1741719045797,-500.0,8.997e-05,2]
[355934246,1741719045810,-906.18,8.997e-05,2]
[355934247,1741719045820,-1547.69,8.997e-05,2]
[355934248,1741719045829,-1097.06,8.997e-05,2]
[355934249,1741719045838,-1850.77,8.997e-05,2]
[355934250,1741719045849,-500.0,8.997e-05,2]
[355934251,1741719045858,-1150.1,8.997e-05,2]
[355934252,1741719045867,-858.68,8.997e-05,2]
[355934253,1741719045878,-1113.6,8.997e-05,2]
[355934254,1741719045888,-500.0,8.997e-05,2]
[355934255,1741719045897,-1141.48743805,8.998e-05,3]
[355934256,1741719045907,-660.44,8.998e-05,2]
[355934257,1741719045917,-500.0,8.998e-05,2]
[355934258,1741719045927,-835.7,8.998e-05,2]
[355934259,1741719045937,-500.0,8.998e-05,2]
[355934260,1741719045947,-500.0,8.998e-05,2]
[355934261,1741719045957,-1356.3,8.998e-05,2]
[355934262,1741719045968,-500.0,8.998e-05,2]
[355934263,1741719045977,-500.0,8.998e-05,2]
[355934264,1741719045988,-675.07,8.998e-05,2]
[355934265,1741719045998,-531.7,8.998e-05,2]
[355934266,1741719046011,-753.72,8.998e-05,2]
[355934267,1741719046021,-500.0,8.998e-05,2]
[355934268,1741719046030,-1636.03,8.998e-05,2]
[355934269,1741719046039,-523.13,8.998e-05,2]
[355934270,1741719046050,-500.0,8.998e-05,2]
[355934271,1741719046059,-500.0,8.998e-05,2]
[355934272,1741719046070,-500.0,8.998e-05,2]
[355934273,1741719046080,-1705.33,8.998e-05,2]
[355934274,1741719046090,-500.0,8.998e-05,2]
[355934275,1741719046100,-500.0,8.998e-05,2]
[355934276,1741719046109,-500.0,8.998e-05,2]
[355934277,1741719046119,-500.0,8.998e-05,2]
[355934278,1741719046128,-1186.52,8.998e-05,2]
[355934279,1741719046138,-500.0,8.998e-05,2]
[355934280,1741719046148,-742.9,8.998e-05,2]
[355934281,1741719046158,-500.0,8.998e-05,2]
[355934282,1741719046167,-500.0,8.998e-05,2]
[355934283,1741719046177,-1728.96,8.998e-05,2]
[355934284,1741719046187,-500.0,8.998e-05,2]
[355934285,1741719046198,-500.0,8.998e-05,2]
[355934286,1741719046208,-500.0,8.998e-05,2]
[355934287,1741719046218,-500.0,8.998e-05,2]
[355934288,1741719046227,-500.0,8.998e-05,2]
[355934289,1741719046237,-502.03793689,8.998e-05,2]
[355934290,1741719046247,-1760.67,8.998e-05,2]
[355934291,1741719046256,-500.0,8.998e-05,2]
[355934292,1741719046265,-500.0,8.998e-05,2]
[355934293,1741719046275,-500.0,8.998e-05,2]
[355934294,1741719046286,-500.0,8.998e-05,2]
[355934295,1741719046298,-2078.46,8.998e-05,2]
[355934296,1741719046308,-880.45,8.998e-05,2]
[355934297,1741719046318,-500.0,8.998e-05,2]
[355934298,1741719046328,-500.0,8.998e-05,2]
[355934299,1741719046338,-529.23,8.998e-05,2]
[355934300,1741719046347,-500.0,8.998e-05,2]
[355934301,1741719046357,-500.0,8.998e-05,2]
[355934302,1741719046367,-500.0,8.998e-05,2]
[355934303,1741719046377,-500.0,8.998e-05,2]
[355934304,1741719046387,-1166.96,8.998e-05,2]
[355934305,1741719046398,-506.30365526,8.998e-05,2]
[355934306,1741719046407,-1422.86,8.998e-05,2]
[355934307,1741719046417,-500.0,8.998e-05,2]
[355934308,1741719046427,-500.0,8.998e-05,2]
[355934309,1741719046437,-1318.73,8.998e-05,2]
[355934310,1741719046446,-500.0,8.998e-05,2]
[355934312,1741719046456,-500.0,8.998e-05,2]
[355934313,1741719046466,-500.0,8.998e-05,2]
[355934314,1741719046476,-500.0,8.998e-05,2]
[355934315,1741719046486,-500.0,8.998e-05,2]
[355934316,1741719046496,-539.28596771,8.998e-05,2]
[355934317,1741719046505,-500.0,8.998e-05,2]
[355934318,1741719046514,-500.0,8.998e-05,2]
[355934319,1741719046524,-500.0,8.998e-05,2]
[355934320,1741719046534,-1712.74,8.998e-05,2]
[355934321,1741719046546,-500.0,8.998e-05,2]
[355934322,1741719046556,-500.0,8.998e-05,2]
[355934323,1741719046566,-500.0,8.998e-05,2]
[355934324,1741719046575,-511.92056915,8.998e-05,2]
[355934325,1741719046585,-513.80900646,8.998e-05,2]
[355934326,1741719046595,-500.0,8.998e-05,2]
[355934327,1741719046604,-1298.05,8.998e-05,2]
[355934328,1741719046614,-1167.33,8.998e-05,2]
[355934329,1741719046624,-501.25436464,8.998e-05,2]
[355934330,1741719046634,-500.0,8.998e-05,2]
[355934331,1741719046644,-500.0,8.998e-05,2]
[355934332,1741719046653,-1126.75,8.998e-05,2]
[355934333,1741719046662,-500.0,8.998e-05,2]
[355934334,1741719046672,-780.29,8.998e-05,2]
[355934335,1741719046681,-1101.16,8.998e-05,2]
[355934336,1741719046691,-396.48417602,8.998e-05,2]
[355934337,1741719046700,-500.0,8.998e-05,2]
[355934338,1741719046709,-1888.4,8.998e-05,2]
[355934339,1741719046719,-515.46834122,8.998e-05,2]
[355934340,1741719046728,-500.0,8.998e-05,2]
[355934341,1741719046738,-502.14992367,8.998e-05,2]
[355934342,1741719046748,-527.42253429,8.998e-05,2]
[355934343,1741719046757,-500.0,8.998e-05,2]
[355934344,1741719046767,-1122.45,8.998e-05,2]
[355934345,1741719046776,-500.0,8.998e-05,2]
[355934347,1741719046786,-771.66,8.998e-05,2]
[355934349,1741719046797,-500.0,8.998e-05,2]
[355934350,1741719046807,-1512.52,8.998e-05,2]
[355934352,1741719046820,-1043.77,8.998e-05,2]
[355934354,1741719046830,-500.0,8.998e-05,2]
[355934355,1741719046839,-500.0,8.998e-05,2]
[355934356,1741719046848,-500.0,8.998e-05,2]
[355934357,1741719046859,-500.0,8.998e-05,2]
[355934358,1741719046868,-609.5,8.998e-05,2]
[355934359,1741719046879,-1044.31,8.998e-05,2]
[355934360,1741719046890,-500.0,8.998e-05,2]
[355934361,1741719046900,-1757.27,8.998e-05,2]
[355934362,1741719046909,-772.3,8.998e-05,2]
[355934363,1741719046919,-500.0,8.998e-05,2]
[355934364,1741719046928,-500.0,8.998e-05,2]
[355934365,1741719046937,-500.0,8.998e-05,2]
[355934366,1741719046947,-500.0,8.998e-05,2]
[355934367,1741719046956,-521.5408273,8.998e-05,2]
[355934368,1741719046966,-500.0,8.998e-05,2]
[355934369,1741719046976,-500.0,8.998e-05,2]
[355934370,1741719046986,-500.0,8.998e-05,2]
[355934371,1741719046996,-500.0,8.998e-05,2]
[355934372,1741719047006,-719.84,8.998e-05,2]
[355934373,1741719047015,-722.58,8.998e-05,2]
[355934374,1741719047025,-765.06,8.998e-05,2]
[355934375,1741719047034,-160.93033684,8.998e-05,2]
[355934376,1741719047047,-1032.11,8.998e-05,2]
[355934377,1741719047056,-500.0,8.998e-05,2]
[355934378,1741719047066,-1562.32,8.998e-05,2]
[355934379,1741719047076,-500.0,8.998e-05,2]
[355934380,1741719047086,-538.18,8.998e-05,2]
[355934381,1741719047096,-500.0,8.998e-05,2]
[355934382,1741719047107,-509.65448517,8.998e-05,2]
[355934383,1741719047116,-500.0,8.998e-05,2]
[355934384,1741719047126,-619.51,8.998e-05,2]
[355934385,1741719047135,-500.0,8.998e-05,2]
[355934386,1741719047144,-500.0,8.998e-05,2]
[355934387,1741719047155,-522.91294698,8.998e-05,2]
[355934388,1741719047164,-697.61,8.998e-05,2]
[355934389,1741719047174,-1731.62,8.998e-05,2]
[355934390,1741719047184,-500.0,8.998e-05,2]
[355934391,1741719047193,-500.0,8.998e-05,2]
[355934392,1741719047203,-500.0,8.998e-05,2]
[355934393,1741719047212,-500.0,8.998e-05,2]
[355934394,1741719047221,-506.0532973,8.998e-05,2]
[355934395,1741719047231,-500.0,8.998e-05,2]
[355934396,1741719047240,-504.6255803,8.998e-05,2]
[355934397,1741719047249,-763.71,8.998e-05,2]
[355934398,1741719047259,-500.0,8.998e-05,2]
[355934399,1741719047268,-505.27905525,8.998e-05,2]
[355934400,1741719047277,-500.0,8.998e-05,2]
[355934401,1741719047286,-786.06,8.998e-05,2]
[355934402,1741719047298,-500.0,8.998e-05,2]
[355934403,1741719047307,-505.56500285,8.998e-05,2]
[355934404,1741719047317,-500.55567713,8.998e-05,2]
[355934405,1741719047326,-500.0,8.998e-05,2]
[355934406,1741719047335,-500.0,8.998e-05,2]
[355934407,1741719047345,-606.8113451,8.998e-05,2]
[355934408,1741719047354,-500.0,8.998e-05,2]
[355934409,1741719047363,-883.83,8.998e-05,2]
[355934410,1741719047373,-500.0,8.998e-05,2]
[355934411,1741719047382,-1141.14,8.998e-05,2]
[355934412,1741719047391,-500.0,8.998e-05,2]
[355934413,1741719047401,-500.0,8.998e-05,2]
[355934414,1741719047410,-500.0,8.998e-05,2]
[355934415,1741719047420,-500.0,8.998e-05,2]
[355934416,1741719047429,-500.0,8.998e-05,2]
[355934417,1741719047439,-500.0,8.998e-05,2]
[355934418,1741719047449,-500.0,8.998e-05,2]
[355934419,1741719047458,-500.0,8.998e-05,2]
[355934420,1741719047467,-500.0,8.998e-05,2]
[355934421,1741719047477,-500.0,8.998e-05,2]
[355934422,1741719047486,-500.0,8.998e-05,2]
[355934423,1741719047496,-500.0,8.998e-05,2]
[355934424,1741719047505,-500.0,8.998e-05,2]
[355934425,1741719047515,-500.0,8.998e-05,2]
[355934426,1741719047524,-2175.25,8.998e-05,2]
[355934427,1741719047534,-500.0,8.998e-05,2]
[355934428,1741719047547,-1252.94,8.998e-05,2]
[355934429,1741719047557,-630.65,8.998e-05,2]
[355934430,1741719047567,-500.0,8.998e-05,2]
[355934431,1741719047576,-789.31,8.998e-05,2]
[355934432,1741719047586,-513.8,8.998e-05,2]
[355934433,1741719047596,-500.0,8.998e-05,2]
[355934434,1741719047605,-500.0,8.998e-05,2]
[355934435,1741719047614,-500.0,8.998e-05,2]
[355934436,1741719047624,-671.91,8.998e-05,2]
[355934437,1741719047634,-500.0,8.998e-05,2]
[355934438,1741719047644,-500.0,8.998e-05,2]
[355934439,1741719047654,-502.48392964,8.998e-05,2]
[355934440,1741719047664,-1344.54,8.998e-05,2]
[355934441,1741719047673,-500.0,8.998e-05,2]
[355934442,1741719047683,-506.23045178,8.998e-05,2]
[355934443,1741719047694,-500.0,8.998e-05,2]
[355934444,1741719047704,-504.88680461,8.998e-05,2]
[355934445,1741719047714,-500.0,8.998e-05,2]
[355934446,1741719047723,-1578.89,8.998e-05,2]
[355934447,1741719047733,-500.0,8.998e-05,2]
[355934448,1741719047742,-554.09,8.998e-05,2]
[355934449,1741719047751,-1178.32,8.998e-05,2]
[355934450,1741719047761,-500.0,8.998e-05,2]
[355934451,1741719047771,-1756.14,8.998e-05,2]
[355934452,1741719047779,-721.37,8.998e-05,2]
[355934453,1741719047789,-500.0,8.998e-05,2]
[355934454,1741719047808,-500.0,8.998e-05,2]
[355934455,1741719047818,-500.0,8.998e-05,2]
[355934456,1741719047827,-500.0,8.998e-05,2]
[355934457,1741719047837,-1141.48743805,8.999e-05,3]
[355934458,1741719047846,-1020.69,8.999e-05,2]
[355934459,1741719047856,-1183.0,8.999e-05,2]
[355934460,1741719047866,-204554.20171393,9e-05,2]
[355934461,1741719047876,-113361.21047003,9e-05,2]
[355934462,1741719047892,-941.68,9e-05,2]
[355934463,1741719047903,-300.06606791,9e-05,2]
[355934464,1741719047914,-691.91987771,9e-05,2]
[355934465,1741719047925,-500.0,9e-05,2]
[355934466,1741719047935,-905.81429486,9e-05,2]
[355934467,1741719047947,-1862.11572459,9e-05,2]
[355934468,1741719048025,-1801.51640522,9e-05,2]
[355934469,1741719048036,-793.24401731,9e-05,2]
[355934470,1741719048050,-457.45496847,9e-05,2]
[355934471,1741719048062,-32323.12756008,9e-05,2]
[355934472,1741719048074,-942.46523803,9e-05,2]
[355934473,1741719048085,-1200.0,9e-05,2]
[355934474,1741719048097,-310.198,9e-05,2]
[355934475,1741719048110,-232434.7540322,9e-05,2]
[355934476,1741719048319,-28219.55979151,9e-05,2]
[355934477,1741719048331,-17186.07518865,9e-05,2]
[355934478,1741719048343,-139367.32821202,9e-05,2]
[355934479,1741719048355,-11619.70338337,9e-05,2]
[355934480,1741719048368,-3468.91446124,9e-05,2]
[355934481,1741719048380,-9029.82707873,9e-05,2]
[355934482,1741719048392,-513.1245468,9e-05,2]
[355934483,1741719048405,-389.405,9e-05,2]
[355934484,1741719048417,-753.69950238,9e-05,2]
[355934485,1741719048429,-730.90623362,9e-05,2]
[355934486,1741719048441,-3394.8714,9e-05,2]
[355934487,1741719048940,-2810.13483887,9e-05,2]
[355934488,1741719050194,-500.0,8.994e-05,2]
[355934489,1741719050204,-500.0,8.995e-05,2]
[355934490,1741719050214,-272944.46765033,9e-05,2]
[355934491,1741719050225,-1733.61113243,9e-05,2]
[355934492,1741719050373,-769.6000105,9e-05,2]
[355934493,1741719050828,-833.0,9e-05,2]
[355934494,1741719050882,-2525.56883789,9e-05,2]
[355934495,1741719050896,-2833.18767985,9e-05,2]
[355934496,1741719050908,-8304.13925045,9e-05,2]
[355934497,1741719050920,-2003.95072,9e-05,2]
[355934498,1741719053136,-3675.16,0.0001,8]
[355934499,1741719068668,-6324.84,0.0001,8]
[355934500,1741719149898,-500.0,9.272e-05,7]
[355934501,1741719149967,-500.0,9.546e-05,7]
[355934502,1741719149997,-150.0,9.562e-05,7]
[355934503,1741719150056,-500.0,9.82e-05,7]
[355934504,1741719165755,300.0,8.6e-05,3]
[355934505,1741719167145,700.0,8.7e-05,3]
[355934506,1741719169284,1000.0,8.8e-05,3]
[355934507,1741719171451,1400.0,8.9e-05,3]
[355934508,1741719185555,-1456.21,0.00010092,14]
[355934509,1741719185614,-1456.21,0.00010366,14]
[355934510,1741719185676,-1456.21,0.0001064,14]
[355934511,1741719185739,-1456.21,0.00010914,14]
[355934512,1741719225161,-500.0,0.00010094,7]
[355934513,1741719225227,-186.96221774,0.00010368,7]
[355934515,1741719306707,476.86,8.188e-05,2]
[355934516,1741719369837,855.71,8.184e-05,2]
[355934517,1741719443163,156.38,8.185e-05,2]
[355934518,1741719443361,156.38,8.267e-05,2]
[355934519,1741719443503,156.38,8.349e-05,2]
[355934520,1741719443618,156.38,8.43e-05,2]
[355934521,1741719443697,156.38,8.512e-05,2]
[355934522,1741719443840,156.38,8.594e-05,2]
[355934523,1741719621377,749.60622476,0.00028549,30]
[355934525,1741719799150,244.66,8.274e-05,2]
[355934526,1741719799257,175.15,8.187e-05,2]
[355934527,1741719799805,823.66912289,0.00028549,120]
[355934528,1741719901781,2000.0,8.225e-05,2]
[355934529,1741719920043,1250.13,8.219e-05,2]
[355934530,1741720024935,200.0,8.5e-05,3]
[355934531,1741720027062,500.0,8.6e-05,3]
[355934532,1741720029388,800.0,8.7e-05,3]
[355934533,1741720031689,1100.0,8.8e-05,3]
[355934534,1741720033963,1400.0,8.9e-05,3]
[355934535,1741720084493,983.74,8.219e-05,2]
[355934536,1741720153573,1000.0,8.219e-05,2]
[355934537,1741720225567,446.52,8.236e-05,2]
[355934547,1741720231641,-150.0,8.923e-05,2]
[355934548,1741720231652,-3932.0,8.923e-05,2]
[355934549,1741720231662,-486.24591697,8.923e-05,2]
[355934550,1741720231702,-525.75408303,8.923e-05,2]
[355934551,1741720231712,-150.0,8.992e-05,2]
[355934552,1741720231721,-300.0,8.992e-05,2]
[355934553,1741720231731,-1454.05,8.993e-05,2]
[355934554,1741720231740,-2089.62,8.993e-05,2]
[355934555,1741720231750,-500.0,8.993e-05,2]
[355934556,1741720231760,-569.98054806,8.993e-05,2]
[355934557,1741720231769,-340.66646182,8.993e-05,2]
[355934558,1741720231781,-758.38503925,8.993e-05,2]
[355934559,1741720231792,-3849.75849893,8.993e-05,2]
[355934560,1741720231802,-805.83,8.993e-05,2]
[355934561,1741720231811,-1037.27,8.993e-05,2]
[355934562,1741720231821,-172.881115,8.993e-05,2]
[355934563,1741720231830,-1906.32,8.993e-05,2]
[355934564,1741720231840,-153.80157,8.993e-05,2]
[355934565,1741720231854,-571.26,8.993e-05,2]
[355934566,1741720231864,-500.0,8.993e-05,2]
[355934567,1741720231873,-152.872762,8.993e-05,2]
[355934568,1741720231883,-1375.44,8.993e-05,2]
[355934569,1741720231901,-654.93,8.993e-05,2]
[355934570,1741720231913,-1923.42,8.993e-05,2]
[355934571,1741720231923,-837.14,8.993e-05,2]
[355934572,1741720231933,-1745.204609,8.993e-05,2]
[355934573,1741720231943,-4277.2,8.993e-05,2]
[355934574,1741720231953,-375.45988365,8.993e-05,2]
[355934575,1741720231966,-1082.37011635,8.993e-05,2]
[355934576,1741720231976,-317.21092439,8.993e-05,2]
[355934577,1741720232002,-316.38184705,8.993e-05,2]
[355934578,1741720232043,-148.17722856,8.993e-05,2]
[355934579,1741720232054,-551.82277144,8.993e-05,2]
[355934580,1741720232068,-251.82722856,8.993e-05,2]
[355934581,1741720232079,-1004.12,8.993e-05,2]
[355934582,1741720232089,-2093.92,8.993e-05,2]
[355934583,1741720232103,-500.0,8.993e-05,2]
[355934584,1741720232115,-382.69888339,8.993e-05,2]
[355934585,1741720232127,-255.11167216,8.993e-05,2]
[355934586,1741720232156,-118.55944445,8.993e-05,2]
[355934587,1741720232166,-547.88055555,8.993e-05,2]
[355934588,1741720232182,-334.50747262,8.993e-05,2]
[355934618,1741720237574,-588.36267532,8.993e-05,2]
[355934619,1741720237586,-354.60144798,8.993e-05,2]
[355934620,1741720237628,-61.48784853,8.993e-05,2]
[355934621,1741720237639,-1738.51215147,8.993e-05,2]
[355934622,1741720237650,-81.15784853,8.993e-05,2]
[355934623,1741720237659,-420.38293382,8.993e-05,2]
[355934624,1741720237671,-79.61706618,8.993e-05,2]
[355934625,1741720237681,-2234.33293382,8.993e-05,2]
[355934626,1741720237735,-482.53706618,8.993e-05,2]
[355934627,1741720237746,-177.24725873,8.993e-05,2]
[355934628,1741720237759,-580.46959567,8.993e-05,2]
[355934629,1741720237791,-355.99999955,8.993e-05,2]
[355934630,1741720237810,-558.512,8.993e-05,2]
[355934631,1741720237899,-574.00114605,8.993e-05,2]
[355934632,1741720237908,-2517.63,8.993e-05,2]
[355934633,1741720237918,-3313.31,8.993e-05,2]
[355934634,1741720237927,-500.0,8.993e-05,2]
[355934635,1741720237937,-1063.62,8.993e-05,2]
[355934636,1741720237946,-431.11904845,8.993e-05,2]
[355934700,1741720239605,-68.88095155,8.993e-05,2]
[355934702,1741720239615,-635.16,8.993e-05,2]
[355934703,1741720239624,-1243.64,8.993e-05,2]
[355934704,1741720239633,-539.33,8.993e-05,2]
[355934705,1741720239642,-1820.54948563,8.993e-05,2]
[355934706,1741720239660,-561.95051437,8.993e-05,2]
[355934707,1741720239670,-2545.90850561,8.993e-05,2]
[355934708,1741720239681,-2887.94149439,8.993e-05,2]
[355934709,1741720239690,-849.69,8.993e-05,2]
[355934710,1741720239699,-1584.5,8.993e-05,2]
[355934711,1741720239708,-925.65,8.993e-05,2]
[355934712,1741720239718,-1311.01,8.993e-05,2]
[355934713,1741720239727,-1027.16,8.993e-05,2]
[355934714,1741720239736,-890.3,8.993e-05,2]
[355934715,1741720239746,-3042.07,8.993e-05,2]
[355934716,1741720239755,-3853.94,8.993e-05,2]
[355934717,1741720239765,-1685.42,8.993e-05,2]
[355934718,1741720239775,-521.22,8.993e-05,2]
[355934719,1741720239784,-1044.8,8.993e-05,2]
[355934720,1741720239793,-693.42,8.993e-05,2]
[355934721,1741720239802,-1345.42,8.993e-05,2]
[355934722,1741720239811,-1061.07,8.993e-05,2]
[355934723,1741720239820,-1684.28,8.993e-05,2]
[355934724,1741720239829,-903.23,8.993e-05,2]
[355934725,1741720239838,-500.0,8.994e-05,2]
[355934726,1741720239848,-500.0,8.994e-05,2]
[355934727,1741720239859,-500.0,8.994e-05,2]
[355934728,1741720239869,-529.77636592,8.994e-05,2]
[355934729,1741720239879,-500.0,8.994e-05,2]
[355934730,1741720239888,-893.32,8.994e-05,2]
[355934731,1741720239898,-500.0,8.994e-05,2]
[355934732,1741720239907,-500.0,8.994e-05,2]
[355934733,1741720239917,-500.0,8.994e-05,2]
[355934734,1741720239926,-1092.99,8.994e-05,2]
[355934735,1741720239936,-500.0,8.994e-05,2]
[355934736,1741720239947,-500.0,8.994e-05,2]
[355934737,1741720239957,-500.0,8.994e-05,2]
[355934738,1741720239967,-726.82,8.994e-05,2]
[355934739,1741720239976,-474.58508743,8.994e-05,2]
[355934740,1741720239985,-521.87,8.994e-05,2]
[355934741,1741720239995,-500.0,8.994e-05,2]
[355934742,1741720240004,-1947.23,8.994e-05,2]
[355934743,1741720240013,-500.0,8.994e-05,2]
[355934744,1741720240022,-500.0,8.994e-05,2]
[355934745,1741720240031,-500.0,8.994e-05,2]
[355934746,1741720240040,-740.9,8.994e-05,2]
[355934747,1741720240049,-500.0,8.994e-05,2]
[355934748,1741720240058,-500.0,8.994e-05,2]
[355934749,1741720240068,-545.19,8.994e-05,2]
[355934750,1741720240078,-500.0,8.994e-05,2]
[355934751,1741720240088,-500.0,8.994e-05,2]
[355934752,1741720240097,-532.75,8.994e-05,2]
[355934753,1741720240110,-500.0,8.994e-05,2]
[355934754,1741720240120,-1304.16,8.994e-05,2]
[355934755,1741720240129,-500.0,8.994e-05,2]
[355934756,1741720240139,-500.0,8.994e-05,2]
[355934757,1741720240150,-1584.67,8.994e-05,2]
[355934758,1741720240161,-500.0,8.994e-05,2]
[355934759,1741720240176,-1559.34,8.994e-05,2]
[355934760,1741720240189,-612.52,8.994e-05,2]
[355934761,1741720240199,-500.0,8.994e-05,2]
[355934762,1741720240208,-500.0,8.994e-05,2]
[355934763,1741720240218,-500.0,8.994e-05,2]
[355934764,1741720240228,-500.0,8.994e-05,2]
[355934765,1741720240238,-500.0,8.994e-05,2]
[355934766,1741720240248,-500.0,8.994e-05,2]